fUSD/lending_fUSD_20241216
["ID","MTS","AMOUNT","RATE_DAILY","PERIOD"]
[345616880,1734389432488,-250.0,0.00023611,2]
[345616881,1734389432498,-1000.0,0.00023705,2]
[345616882,1734389432507,-418.532,0.0002375,2]
[345616883,1734389432516,-300.0,0.00023758,2]
[345616884,1734389432527,-200.0,0.00023758,10]
[345616885,1734389432536,-23900.0,0.00023759,2]
[345616886,1734389432546,-619.32,0.0002376,2]
[345616887,1734389432555,-250.0,0.00023763,2]
[345616888,1734389432564,-250.0,0.0002383,2]
[345616889,1734389432573,-164.34,0.00023922,2]
[345616890,1734389432582,-866.39,0.00024176,2]
[345616891,1734389432592,-153.0,0.00024223,2]
[345616892,1734389432602,-153.0,0.00024223,2]
[345616893,1734389432612,-237.0,0.0002425,2]
[345616894,1734389432621,-465.38,0.00024432,2]
[345616895,1734389432630,-150.94,0.0002445,30]
[345616896,1734389432639,-237.0,0.000245,2]
[345616897,1734389432648,-766.42666823,0.00024576,2]
[345616898,1734389432660,-209.50333177,0.00024576,2]
[345616899,1734389432669,-975.93,0.00024576,2]
[345616900,1734389432679,-975.93,0.00024576,2]
[345616901,1734389432688,-237.0,0.0002475,2]
[345616902,1734389432697,-2013.37152,0.0002475,2]
[345616903,1734389432707,-1000.0,0.00024799,2]
[345616905,1734389432716,-25793.59193426,0.000248,2]
[345616907,1734389432731,-1224.82125448,0.000248,2]
[345616909,1734389432742,-1274.4299985,0.000248,2]
[345616911,1734389432753,-314.370006,0.000248,2]
[345616913,1734389432764,-1086.469838,0.000248,2]
[345616916,1734389432778,-4616.7,0.000248,2]
[345616919,1734389432800,-400.824639,0.000248,2]
[345616921,1734389432811,-514.0692239,0.000248,2]
[345616950,1734389439066,-547.05,0.00023401,2]
[345616951,1734389439075,-49886.03001566,0.000248,2]
[345616952,1734389439085,-150.0,0.0002482,2]
[345616953,1734389439094,-150.0,0.00024849,2]
[345616954,1734389439103,-500.0,0.00024898,4]
[345616955,1734389439112,-500.0,0.00024898,4]
[345616956,1734389439121,-500.0,0.00024898,4]
[345616957,1734389439131,-500.0,0.00024898,4]
[345616958,1734389439140,-500.0,0.00024898,4]
[345616959,1734389439149,-554.75,0.00024898,4]
[345616960,1734389439158,-500.0,0.00024898,4]
[345616961,1734389439167,-500.95177337,0.00024898,4]
[345616962,1734389439177,-158.72955,0.00024898,4]
[345616963,1734389439186,-152.449149,0.00024898,4]
[345616964,1734389439198,-200.0,0.00024898,4]
[345616965,1734389439207,-500.0,0.00024898,4]
[345616966,1734389439217,-639.39,0.00024898,4]
[345616967,1734389439226,-500.0,0.00024898,4]
[345616968,1734389439236,-500.0,0.00024898,4]
[345616969,1734389439245,-500.0,0.00024898,4]
[345616970,1734389439254,-234.874952,0.00024898,4]
[345616971,1734389439263,-500.0,0.00024898,4]
[345616972,1734389439273,-159.064897,0.00024898,4]
[345616973,1734389439284,-189.427915,0.00024898,4]
[345616974,1734389439294,-1587.53,0.00024898,4]
[345616975,1734389439303,-500.0,0.00024898,4]
[345616976,1734389439312,-500.0,0.00024898,4]
[345616977,1734389439321,-575.25087064,0.00024898,4]
[345616978,1734389439330,-3861.96,0.00024898,4]
[345616979,1734389439340,-500.0,0.00024898,4]
[345616980,1734389439349,-525.77,0.00024898,4]
[345616981,1734389439358,-500.0,0.00024898,4]
[345616982,1734389439368,-2396.31,0.00024898,4]
[345616983,1734389439377,-500.0,0.00024898,4]
[345616984,1734389439386,-512.92,0.00024898,4]
[345616985,1734389439395,-3536.68,0.00024898,4]
[345616986,1734389439404,-500.0,0.00024898,4]
[345616987,1734389439414,-500.0,0.00024898,4]
[345616988,1734389439423,-533.36,0.00024898,4]
[345616989,1734389439432,-9004.41,0.00024898,4]
[345616990,1734389439442,-150.12145301,0.00024898,4]
[345616991,1734389439451,-500.0,0.00024898,4]
[345616992,1734389439461,-500.0,0.00024898,4]
[345616993,1734389439470,-527.11902474,0.00024898,4]
[345616995,1734389439480,-550.27,0.00024898,4]
[345616997,1734389439490,-500.0,0.00024898,4]
[345616998,1734389439499,-500.0,0.00024898,4]
[345616999,1734389439509,-500.0,0.00024898,4]
[345617000,1734389439518,-500.0,0.00024898,4]
[345617001,1734389439527,-500.0,0.00024898,4]
[345617002,1734389439539,-500.0,0.00024898,4]
[345617003,1734389439549,-485.67,0.00024898,4]
[345617004,1734389439558,-511.25533836,0.00024898,4]
[345617005,1734389439567,-501.34003149,0.00024898,4]
[345617006,1734389439577,-500.0,0.00024898,4]
[345617007,1734389439587,-500.0,0.00024898,4]
[345617008,1734389439596,-500.0,0.00024898,4]
[345617009,1734389439606,-500.0,0.00024898,4]
[345617010,1734389439615,-500.0,0.00024898,4]
[345617011,1734389439625,-500.0,0.00024898,4]
[345617012,1734389439634,-1158.19,0.00024898,4]
[345617013,1734389439645,-500.0,0.00024898,4]
[345617014,1734389439655,-3769.14,0.00024898,4]
[345617015,1734389439665,-3304.0485,0.00024898,2]
[345617016,1734389439675,-1166.533,0.00024899,8]
[345617017,1734389439684,-500.0,0.00024899,4]
[345617018,1734389439695,-500.0,0.00024899,4]
[345617019,1734389439705,-500.0,0.00024899,4]
[345617020,1734389439715,-200.5915612,0.00024899,4]
[345617021,1734389439725,-500.0,0.00024899,4]
[345617022,1734389439734,-500.0,0.00024899,4]
[345617023,1734389439744,-500.0,0.00024899,4]
[345617024,1734389439753,-500.0,0.00024899,4]
[345617025,1734389439763,-500.0,0.00024899,4]
[345617026,1734389439774,-613.34,0.00024899,4]
[345617027,1734389439786,-1065.72,0.00024899,4]
[345617028,1734389439795,-1065.72,0.00024899,4]
[345617029,1734389439805,-1065.72,0.00024899,4]
[345617030,1734389439815,-1065.72,0.00024899,4]
[345617031,1734389439824,-1065.72,0.00024899,4]
[345617032,1734389439833,-507.21556616,0.00024899,4]
[345617033,1734389439844,-500.0,0.00024899,4]
[345617034,1734389439853,-500.0,0.00024899,4]
[345617035,1734389439863,-500.0,0.00024899,4]
[345617036,1734389439872,-500.0,0.00024899,4]
[345617037,1734389439882,-500.0,0.00024899,4]
[345617038,1734389439891,-500.0,0.00024899,4]
[345617039,1734389439900,-500.0,0.00024899,4]
[345617040,1734389439910,-500.0,0.00024899,4]
[345617041,1734389439919,-612.02,0.00024899,4]
[345617042,1734389439928,-500.0,0.00024899,4]
[345617043,1734389439938,-500.0,0.00024899,4]
[345617044,1734389439947,-500.0,0.00024899,4]
[345617045,1734389439956,-500.0,0.00024899,4]
[345617046,1734389439966,-318.74,0.00024899,4]
[345617047,1734389439975,-500.0,0.00024899,4]
[345617048,1734389439985,-500.0,0.00024899,4]
[345617049,1734389439994,-500.0,0.00024899,4]
[345617050,1734389440004,-500.0,0.00024899,4]
[345617051,1734389440013,-500.0,0.00024899,4]
[345617052,1734389440022,-500.0,0.00024899,4]
[345617053,1734389440031,-500.0,0.00024899,4]
[345617054,1734389440041,-500.0,0.00024899,4]
[345617055,1734389440051,-500.0,0.00024899,4]
[345617056,1734389440060,-500.0,0.00024899,4]
[345617057,1734389440070,-500.0,0.00024899,4]
[345617058,1734389440079,-177.08456082,0.00024899,4]
[345617059,1734389440088,-500.0,0.00024899,4]
[345617060,1734389440098,-500.0,0.00024899,4]
[345617061,1734389440107,-500.0,0.00024899,4]
[345617062,1734389440117,-500.0,0.00024899,4]
[345617063,1734389440126,-500.0,0.00024899,4]
[345617064,1734389440135,-335.4,0.00024899,4]
[345617065,1734389440145,-500.0,0.00024899,4]
[345617066,1734389440154,-500.0,0.00024899,4]
[345617067,1734389440163,-500.0,0.00024899,4]
[345617068,1734389440173,-500.0,0.00024899,4]
[345617069,1734389440182,-500.0,0.00024899,4]
[345617070,1734389440192,-152.449149,0.00024899,4]
[345617071,1734389440203,-183.84,0.00024899,4]
[345617072,1734389440212,-500.0,0.00024899,4]
[345617074,1734389440367,-500.0,0.00024899,4]
[345617075,1734389440380,-500.0,0.00024899,4]
[345617076,1734389440390,-500.0,0.00024899,4]
[345617077,1734389440399,-500.0,0.00024899,4]
[345617078,1734389440409,-500.0,0.00024899,4]
[345617079,1734389440419,-500.0,0.00024899,4]
[345617080,1734389440428,-507.5,0.00024899,4]
[345617081,1734389440438,-639.39,0.00024899,4]
[345617082,1734389440448,-639.39,0.00024899,4]
[345617083,1734389440457,-639.39,0.00024899,4]
[345617084,1734389440466,-639.39,0.00024899,4]
[345617085,1734389440475,-639.39,0.00024899,4]
[345617086,1734389440484,-500.0,0.00024899,4]
[345617087,1734389440495,-500.0,0.00024899,4]
[345617088,1734389440505,-500.0,0.00024899,4]
[345617089,1734389440514,-551.05,0.00024899,4]
[345617090,1734389440523,-572.33,0.00024899,4]
[345617091,1734389440534,-572.33,0.00024899,4]
[345617092,1734389440544,-572.33,0.00024899,4]
[345617093,1734389440553,-572.33,0.00024899,4]
[345617094,1734389440567,-572.33,0.00024899,4]
[345617095,1734389440576,-500.0,0.00024899,4]
[345617096,1734389440587,-500.0,0.00024899,4]
[345617097,1734389440596,-500.0,0.00024899,4]
[345617098,1734389440606,-500.0,0.00024899,4]
[345617099,1734389440615,-500.0,0.00024899,4]
[345617100,1734389440625,-500.0,0.00024899,4]
[345617101,1734389440635,-1028.64,0.00024899,4]
[345617102,1734389440645,-1028.64,0.00024899,4]
[345617103,1734389440654,-1028.64,0.00024899,4]
[345617104,1734389440663,-1028.64,0.00024899,4]
[345617105,1734389440673,-1028.64,0.00024899,4]
[345617106,1734389440682,-500.0,0.00024899,4]
[345617107,1734389440692,-500.0,0.00024899,4]
[345617108,1734389440701,-500.0,0.00024899,4]
[345617109,1734389440711,-500.0,0.00024899,4]
[345617110,1734389440720,-500.0,0.00024899,4]
[345617111,1734389440730,-500.0,0.00024899,4]
[345617112,1734389440740,-500.0,0.00024899,4]
[345617113,1734389440750,-500.0,0.00024899,4]
[345617114,1734389440760,-540.84,0.00024899,4]
[345617115,1734389440769,-500.0,0.00024899,4]
[345617116,1734389440780,-500.0,0.00024899,4]
[345617117,1734389440790,-500.0,0.00024899,4]
[345617119,1734389440800,-257.82762416,0.00024899,4]
[345617120,1734389440809,-1587.53,0.00024899,4]
[345617121,1734389440819,-1587.53,0.00024899,4]
[345617122,1734389440829,-1587.53,0.00024899,4]
[345617124,1734389440838,-1587.53,0.00024899,4]
[345617126,1734389440848,-1587.53,0.00024899,4]
[345617128,1734389440858,-500.0,0.00024899,4]
[345617130,1734389440867,-500.0,0.00024899,4]
[345617132,1734389440877,-500.0,0.00024899,4]
[345617134,1734389440886,-500.0,0.00024899,4]
[345617136,1734389440896,-500.0,0.00024899,4]
[345617138,1734389440905,-500.0,0.00024899,4]
[345617139,1734389440915,-374.7145044,0.00024899,4]
[345617140,1734389440925,-500.0,0.00024899,4]
[345617141,1734389440934,-500.0,0.00024899,4]
[345617142,1734389440943,-500.0,0.00024899,4]
[345617143,1734389440952,-500.0,0.00024899,4]
[345617144,1734389440961,-500.0,0.00024899,4]
[345617145,1734389440971,-1481.59,0.00024899,4]
[345617146,1734389440980,-1481.59,0.00024899,4]
[345617147,1734389440990,-1481.59,0.00024899,4]
[345617148,1734389440999,-1481.59,0.00024899,4]
[345617149,1734389441009,-1481.59,0.00024899,4]
[345617150,1734389441018,-3861.96,0.00024899,4]
[345617151,1734389441028,-3861.96,0.00024899,4]
[345617152,1734389441039,-3861.96,0.00024899,4]
[345617153,1734389441049,-500.0,0.00024899,4]
[345617154,1734389441058,-3861.96,0.00024899,4]
[345617155,1734389441067,-3861.96,0.00024899,4]
[345617156,1734389441077,-508.37597132,0.00024899,4]
[345617157,1734389441086,-500.0,0.00024899,4]
[345617158,1734389441096,-500.0,0.00024899,4]
[345617159,1734389441107,-500.0,0.00024899,4]
[345617160,1734389441116,-525.77,0.00024899,4]
[345617161,1734389441126,-500.0,0.00024899,4]
[345617162,1734389441136,-639.31,0.00024899,4]
[345617163,1734389441145,-525.77,0.00024899,4]
[345617164,1734389441155,-500.0,0.00024899,4]
[345617165,1734389441164,-525.77,0.00024899,4]
[345617166,1734389441174,-525.77,0.00024899,4]
[345617167,1734389441183,-525.77,0.00024899,4]
[345617168,1734389441193,-2396.31,0.00024899,4]
[345617169,1734389441207,-2396.31,0.00024899,4]
[345617170,1734389441217,-2396.31,0.00024899,4]
[345617171,1734389441226,-2396.31,0.00024899,4]
[345617172,1734389441236,-2396.31,0.00024899,4]
[345617173,1734389441245,-202.35,0.00024899,4]
[345617174,1734389441255,-512.92,0.00024899,4]
[345617175,1734389441265,-512.92,0.00024899,4]
[345617176,1734389441276,-512.92,0.00024899,4]
[345617177,1734389441289,-512.92,0.00024899,4]
[345617178,1734389441299,-512.92,0.00024899,4]
[345617179,1734389441308,-3536.68,0.00024899,4]
[345617180,1734389441317,-3536.68,0.00024899,4]
[345617181,1734389441327,-3536.68,0.00024899,4]
[345617182,1734389441336,-3536.68,0.00024899,4]
[345617183,1734389441346,-500.0,0.00024899,4]
[345617184,1734389441355,-3536.68,0.00024899,4]
[345617185,1734389441365,-189.82769383,0.00024899,4]
[345617186,1734389441375,-500.0,0.00024899,4]
[345617187,1734389441384,-500.0,0.00024899,4]
[345617188,1734389441394,-500.0,0.00024899,4]
[345617189,1734389441403,-500.0,0.00024899,4]
[345617190,1734389441413,-500.0,0.00024899,4]
[345617191,1734389441423,-506.11092706,0.00024899,4]
[345617192,1734389441432,-1000.0,0.00024899,4]
[345617193,1734389441441,-379.62,0.00024899,4]
[345617194,1734389441451,-500.0,0.00024899,4]
[345617195,1734389441460,-500.0,0.00024899,4]
[345617196,1734389441470,-500.0,0.00024899,4]
[345617197,1734389441479,-500.0,0.00024899,4]
[345617198,1734389441489,-500.0,0.00024899,4]
[345617199,1734389441498,-9004.41,0.00024899,4]
[345617200,1734389441507,-9004.41,0.00024899,4]
[345617201,1734389441518,-9004.41,0.00024899,4]
[345617202,1734389441527,-9004.41,0.00024899,4]
[345617203,1734389441541,-9004.41,0.00024899,4]
[345617204,1734389441550,-500.0,0.00024899,4]
[345617205,1734389441559,-500.0,0.00024899,4]
[345617206,1734389441569,-500.0,0.00024899,4]
[345617207,1734389441580,-500.0,0.00024899,4]
[345617208,1734389441590,-500.0,0.00024899,4]
[345617209,1734389441599,-500.0,0.00024899,4]
[345617210,1734389441609,-500.0,0.00024899,4]
[345617211,1734389441618,-500.0,0.00024899,4]
[345617212,1734389441627,-500.0,0.00024899,4]
[345617213,1734389441636,-500.0,0.00024899,4]
[345617214,1734389441646,-999.0,0.00024899,2]
[345617215,1734389441655,-500.0,0.00024899,4]
[345617216,1734389441665,-500.0,0.00024899,4]
[345617217,1734389441675,-500.0,0.00024899,4]
[345617218,1734389441684,-500.0,0.00024899,4]
[345617219,1734389441693,-500.0,0.00024899,4]
[345617220,1734389441702,-549.24026315,0.00024899,4]
[345617221,1734389441712,-500.0,0.00024899,4]
[345617222,1734389441722,-501.89961673,0.00024899,4]
[345617223,1734389441732,-500.0,0.00024899,4]
[345617224,1734389441742,-500.0,0.00024899,4]
[345617225,1734389441752,-500.0,0.00024899,4]
[345617226,1734389441762,-176.04,0.00024899,4]
[345617227,1734389441771,-500.0,0.00024899,4]
[345617228,1734389441785,-171.85,0.00024899,4]
[345617229,1734389441796,-500.0,0.00024899,4]
[345617230,1734389441805,-500.0,0.00024899,4]
[345617231,1734389441819,-500.0,0.00024899,4]
[345617232,1734389441828,-500.0,0.00024899,4]
[345617233,1734389441839,-500.0,0.00024899,4]
[345617234,1734389441849,-1158.19,0.00024899,4]
[345617235,1734389441860,-1158.19,0.00024899,4]
[345617236,1734389441870,-1158.19,0.00024899,4]
[345617237,1734389441880,-1158.19,0.00024899,4]
[345617238,1734389441890,-1158.19,0.00024899,4]
[345617239,1734389441900,-3769.14,0.00024899,4]
[345617240,1734389441909,-3769.14,0.00024899,4]
[345617241,1734389441919,-3769.14,0.00024899,4]
[345617242,1734389441929,-3769.14,0.00024899,4]
[345617243,1734389441939,-3769.14,0.00024899,4]
[345617244,1734389441948,-500.0,0.000249,2]
[345617245,1734389441958,-1174868.92173006,0.000249,2]
[345617246,1734389441968,-29384.99874269,0.000249,2]
[345617247,1734389441979,-180.31,0.000249,31]
[345617248,1734389441988,-180.31,0.000249,31]
[345617249,1734389441998,-180.31,0.000249,31]
[345617250,1734389442007,-180.31,0.000249,31]
[345617251,1734389442017,-180.31,0.000249,31]
[345617252,1734389442027,-180.31,0.000249,31]
[345617253,1734389442038,-180.31,0.000249,31]
[345617254,1734389442047,-180.31,0.000249,31]
[345617255,1734389442057,-180.31,0.000249,31]
[345617256,1734389442066,-180.31,0.000249,31]
[345617257,1734389442075,-180.31,0.000249,31]
[345617258,1734389442084,-180.31,0.000249,31]
[345617259,1734389442095,-180.31,0.000249,31]
[345617260,1734389442104,-180.31,0.000249,31]
[345617261,1734389442114,-180.31,0.000249,31]
[345617262,1734389442123,-180.31,0.000249,31]
[345617263,1734389442133,-57525.03543082,0.000249,2]
[345617264,1734389442142,-594.0,0.000249,2]
[345617265,1734389442153,-411.41594841,0.0002493,2]
[345617266,1734389442162,-150.0,0.00024942,2]
[345617267,1734389442171,-500.0,0.00024973,2]
[345617268,1734389442180,-500.0,0.00024973,2]
[345617269,1734389442189,-3861.96,0.00024996,4]
[345617270,1734389442203,-2396.31,0.00024996,4]
[345617271,1734389442212,-3536.68,0.00024996,4]
[345617272,1734389442222,-9004.41,0.00024996,4]
[345617273,1734389442231,-500.0,0.00024996,4]
[345617274,1734389442243,-3769.14,0.00024996,4]
[345617275,1734389442252,-500.0,0.00024997,4]
[345617276,1734389442262,-500.0,0.00024997,4]
[345617277,1734389442272,-1608.88,0.00024997,4]
[345617278,1734389442284,-1608.88,0.00024997,4]
[345617279,1734389442294,-500.0,0.00024997,4]
[345617280,1734389442303,-500.0,0.00024997,4]
[345617281,1734389442312,-500.0,0.00024997,4]
[345617282,1734389442321,-500.0,0.00024997,4]
[345617283,1734389442332,-500.0,0.00024997,4]
[345617284,1734389442341,-500.0,0.00024997,4]
[345617285,1734389442351,-500.0,0.00024997,4]
[345617286,1734389442362,-500.0,0.00024997,4]
[345617287,1734389442371,-500.0,0.00024997,4]
[345617288,1734389442382,-500.0,0.00024997,4]
[345617289,1734389442391,-500.0,0.00024997,4]
[345617290,1734389442400,-500.0,0.00024997,4]
[345617291,1734389442410,-500.0,0.00024997,4]
[345617292,1734389442420,-577.73274323,0.00024997,4]
[345617293,1734389442430,-500.0,0.00024997,4]
[345617294,1734389442439,-198.96,0.00024997,4]
[345617295,1734389442449,-500.0,0.00024997,4]
[345617296,1734389442459,-500.0,0.00024997,4]
[345617297,1734389442468,-500.0,0.00024997,4]
[345617298,1734389442478,-500.0,0.00024997,4]
[345617299,1734389442487,-192.97449648,0.00024997,4]
[345617300,1734389442496,-500.0,0.00024997,4]
[345617301,1734389442506,-500.0,0.00024997,4]
[345617302,1734389442517,-500.0,0.00024997,4]
[345617303,1734389442527,-1065.72,0.00024997,4]
[345617304,1734389442538,-1065.72,0.00024997,4]
[345617305,1734389442547,-500.0,0.00024997,4]
[345617306,1734389442557,-500.0,0.00024997,4]
[345617307,1734389442565,-500.0,0.00024997,4]
[345617308,1734389442575,-500.0,0.00024997,4]
[345617309,1734389442585,-500.0,0.00024997,4]
[345617310,1734389442594,-500.0,0.00024997,4]
[345617311,1734389442604,-500.0,0.00024997,4]
[345617312,1734389442615,-500.0,0.00024997,4]
[345617313,1734389442623,-500.0,0.00024997,4]
[345617314,1734389442632,-500.0,0.00024997,4]
[345617315,1734389442642,-487.16,0.00024997,4]
[345617316,1734389442652,-500.0,0.00024997,4]
[345617317,1734389442662,-500.0,0.00024997,4]
[345617318,1734389442671,-500.0,0.00024997,4]
[345617319,1734389442681,-500.0,0.00024997,4]
[345617320,1734389442690,-500.0,0.00024997,4]
[345617321,1734389442699,-152.449149,0.00024997,4]
[345617322,1734389442709,-460.63174247,0.00024997,4]
[345617323,1734389442718,-639.39,0.00024997,4]
[345617324,1734389442727,-639.39,0.00024997,4]
[345617325,1734389442737,-639.39,0.00024997,4]
[345617326,1734389442746,-572.33,0.00024997,4]
[345617327,1734389442756,-572.33,0.00024997,4]
[345617328,1734389442765,-500.0,0.00024997,4]
[345617329,1734389442774,-500.0,0.00024997,4]
[345617330,1734389442786,-1028.64,0.00024997,4]
[345617331,1734389442795,-1028.64,0.00024997,4]
[345617332,1734389442804,-500.0,0.00024997,4]
[345617333,1734389442814,-500.0,0.00024997,4]
[345617334,1734389442823,-500.0,0.00024997,4]
[345617335,1734389442831,-159.064897,0.00024997,4]
[345617336,1734389442841,-1587.53,0.00024997,4]
[345617337,1734389442850,-1587.53,0.00024997,4]
[345617338,1734389442860,-1587.53,0.00024997,4]
[345617339,1734389442869,-500.0,0.00024997,4]
[345617340,1734389442878,-500.0,0.00024997,4]
[345617341,1734389442887,-500.0,0.00024997,4]
[345617342,1734389442897,-500.0,0.00024997,4]
[345617343,1734389442907,-500.0,0.00024997,4]
[345617344,1734389442916,-500.0,0.00024997,4]
[345617345,1734389442926,-500.0,0.00024997,4]
[345617346,1734389442935,-1481.59,0.00024997,4]
[345617347,1734389442945,-1481.59,0.00024997,4]
[345617348,1734389442954,-500.0,0.00024997,4]
[345617349,1734389442963,-513.37,0.00024997,4]
[345617350,1734389442973,-3861.96,0.00024997,4]
[345617351,1734389442982,-3861.96,0.00024997,4]
[345617352,1734389442991,-500.0,0.00024997,4]
[345617353,1734389443001,-500.0,0.00024997,4]
[345617354,1734389443010,-525.77,0.00024997,4]
[345617355,1734389443020,-525.77,0.00024997,4]
[345617356,1734389443031,-525.77,0.00024997,4]
[345617357,1734389443042,-2396.31,0.00024997,4]
[345617358,1734389443052,-2396.31,0.00024997,4]
[345617359,1734389443061,-500.0,0.00024997,4]
[345617360,1734389443071,-500.0,0.00024997,4]
[345617362,1734389443080,-512.92,0.00024997,4]
[345617363,1734389443090,-512.92,0.00024997,4]
[345617364,1734389443099,-512.92,0.00024997,4]
[345617365,1734389443108,-3536.68,0.00024997,4]
[345617366,1734389443120,-3536.68,0.00024997,4]
[345617367,1734389443129,-500.0,0.00024997,4]
[345617368,1734389443139,-500.0,0.00024997,4]
[345617369,1734389443149,-500.0,0.00024997,4]
[345617370,1734389443159,-500.0,0.00024997,4]
[345617371,1734389443171,-9004.41,0.00024997,4]
[345617372,1734389443180,-500.0,0.00024997,4]
[345617373,1734389443189,-9004.41,0.00024997,4]
[345617374,1734389443201,-500.0,0.00024997,4]
[345617375,1734389443211,-500.0,0.00024997,4]
[345617376,1734389443220,-500.0,0.00024997,4]
[345617378,1734389443230,-500.0,0.00024997,4]
[345617379,1734389443240,-500.0,0.00024997,4]
[345617381,1734389443249,-500.0,0.00024997,4]
[345617382,1734389443260,-500.0,0.00024997,4]
[345617383,1734389443271,-500.0,0.00024997,4]
[345617384,1734389443282,-500.0,0.00024997,4]
[345617385,1734389443292,-500.0,0.00024997,4]
[345617386,1734389443302,-500.0,0.00024997,4]
[345617387,1734389443312,-500.0,0.00024997,4]
[345617389,1734389443322,-500.0,0.00024997,4]
[345617390,1734389443331,-500.0,0.00024997,4]
[345617391,1734389443340,-500.0,0.00024997,4]
[345617392,1734389443349,-500.0,0.00024997,4]
[345617393,1734389443359,-500.0,0.00024997,4]
[345617396,1734389443483,-500.0,0.00024997,4]
[345617397,1734389443494,-1158.19,0.00024997,4]
[345617398,1734389443503,-1158.19,0.00024997,4]
[345617399,1734389443512,-1158.19,0.00024997,4]
[345617400,1734389443522,-3769.14,0.00024997,4]
[345617401,1734389443532,-3769.14,0.00024997,4]
[345617402,1734389443542,-501852.911249,0.00024998,2]
[345617403,1734389443551,-500.0,0.00024998,4]
[345617404,1734389443560,-500.0,0.00024998,4]
[345617405,1734389443569,-500.0,0.00024998,4]
[345617406,1734389443579,-285.21,0.00024998,4]
[345617407,1734389443590,-1608.88,0.00024998,4]
[345617408,1734389443599,-1608.88,0.00024998,4]
[345617409,1734389443609,-500.0,0.00024998,4]
[345617410,1734389443618,-500.0,0.00024998,4]
[345617411,1734389443627,-500.0,0.00024998,4]
[345617412,1734389443637,-500.0,0.00024998,4]
[345617413,1734389443646,-500.0,0.00024998,4]
[345617414,1734389443656,-500.0,0.00024998,4]
[345617415,1734389443666,-266.66363675,0.00024998,4]
[345617416,1734389443676,-500.0,0.00024998,4]
[345617417,1734389443685,-500.0,0.00024998,4]
[345617418,1734389443695,-500.0,0.00024998,4]
[345617419,1734389443706,-500.0,0.00024998,4]
[345617420,1734389443716,-500.0,0.00024998,4]
[345617421,1734389443726,-500.0,0.00024998,4]
[345617422,1734389443735,-500.0,0.00024998,4]
[345617423,1734389443744,-642.98578373,0.00024998,4]
[345617424,1734389443754,-500.0,0.00024998,4]
[345617425,1734389443764,-500.0,0.00024998,4]
[345617426,1734389443773,-500.0,0.00024998,4]
[345617427,1734389443784,-270.40146212,0.00024998,4]
[345617428,1734389443795,-500.0,0.00024998,4]
[345617429,1734389443804,-500.0,0.00024998,4]
[345617430,1734389443814,-500.0,0.00024998,4]
[345617431,1734389443823,-500.0,0.00024998,4]
[345617432,1734389443833,-173.40676984,0.00024998,4]
[345617433,1734389443842,-1065.72,0.00024998,4]
[345617434,1734389443851,-1065.72,0.00024998,4]
[345617435,1734389443860,-500.0,0.00024998,4]